{"text_format":"1","workbook":"xlsx","n_sheets":3,"sheets":["Sheet1","Sheet2","Sheet3"],"not_rendered":{"charts":3,"images":0,"macros":1,"external_links":0,"defined_names":12,"comments":0,"pivot_tables":0},"unopened":[],"bounds":{"document_bytes":16777216,"sheet_cells":100000,"rows_first":2000,"rows_last":500,"rows_between":2000,"halvings":0,"cell_chars":16384,"cell_head_chars":4096},"cells_cut":0,"cells_raw":0,"read":"whole","date_system":"1904"}

{"sheet":"Sheet1","index":0,"n_rows":32,"n_cols":6,"rows_kept":32,"cut":false,"hidden":false,"merged":[]}
["Standard Concentration mg/L","Standard Absorbance","Sample    Name","Sample Absorbance","Sample Concentration mg/L solution","Standard Deviation"]
[0,null,null,null,{"$f":"IF(D2,(D2-INTERCEPT(y,x))/SLOPE(y,x),0)","v":0},{"$f":"IF(D2,STEYX(y,x)/ABS(SLOPE(y,x))*SQRT(1+(COUNT(x)*D2^2+SUMSQ(x)-2*D2*SUM(x))/(VARP(x)*COUNT(x)^2)),0)","v":0}]
[6,null,null,null,0,0]
[12,null,null,null,0,0]
[24,null,null,null,0,0]
[40,null,null,null,0,0]
[75,null,null,null,0,0]
[150,null,null,null,0,0]
[300,null,null,null,0,0]
[500,null,null,null,0,0]
[null,null,null,null,0,0]
[null,null,null,null,0,0]
[null,null,null,null,0,0]
[null,null,null,null,0,0]
[null,null,null,null,0,0]
[null,null,null,null,0,0]
[null,null,null,null,0,0]
[null,null,null,null,0,0]
[null,null,null,null,0,0]
[null,null,null,null,0,0]
[null,null,null,null,0,0]
[null,null,null,null,0,0]
[null,null,null,null,0,0]
[null,null,null,null,0,0]
[null,null,null,null,0,0]
[null,null,null,null,0,0]
[null,null,null,null,0,0]
[null,null,null,null,0,0]
[null,null,null,null,0,0]
[null,null,null,null,0,0]
[null,null,null,null,0,0]
[null,null,null,null,0,0]

{"sheet":"Sheet2","index":1,"n_rows":32,"n_cols":6,"rows_kept":32,"cut":false,"hidden":false,"merged":[]}
["Standard Concentration","Standard Reading","Sample Name","Sample Reading","Sample Concentration","Standard Deviation"]
[0,null,null,null,{"$f":"IF(D2,(D2-INTERCEPT(y,x))/SLOPE(y,x),0)","v":0},{"$f":"IF(D2,STEYX(y,x)/ABS(SLOPE(y,x))*SQRT(1+(COUNT(x)*D2^2+SUMSQ(x)-2*D2*SUM(x))/(VARP(x)*COUNT(x)^2)),0)","v":0}]
[6,null,null,null,0,0]
[12,null,null,null,0,0]
[24,null,null,null,0,0]
[40,null,null,null,0,0]
[75,null,null,null,0,0]
[150,null,null,null,0,0]
[300,null,null,null,0,0]
[500,null,null,null,0,0]
[null,null,null,null,0,0]
[null,null,null,null,0,0]
[null,null,null,null,0,0]
[null,null,null,null,0,0]
[null,null,null,null,0,0]
[null,null,null,null,0,0]
[null,null,null,null,0,0]
[null,null,null,null,0,0]
[null,null,null,null,0,0]
[null,null,null,null,0,0]
[null,null,null,null,0,0]
[null,null,null,null,0,0]
[null,null,null,null,0,0]
[null,null,null,null,0,0]
[null,null,null,null,0,0]
[null,null,null,null,0,0]
[null,null,null,null,0,0]
[null,null,null,null,0,0]
[null,null,null,null,0,0]
[null,null,null,null,0,0]
[null,null,null,null,0,0]
[null,null,null,null,0,0]

{"sheet":"Sheet3","index":2,"n_rows":32,"n_cols":6,"rows_kept":32,"cut":false,"hidden":false,"merged":[]}
["Standard Concentration","Standard Reading","Sample Name","Sample Reading","Sample Concentration","Standard Deviation"]
[0,null,null,null,{"$f":"IF(D2,(D2-INTERCEPT(y,x))/SLOPE(y,x),0)","v":0},{"$f":"IF(D2,STEYX(y,x)/ABS(SLOPE(y,x))*SQRT(1+(COUNT(x)*D2^2+SUMSQ(x)-2*D2*SUM(x))/(VARP(x)*COUNT(x)^2)),0)","v":0}]
[6,null,null,null,0,0]
[12,null,null,null,0,0]
[24,null,null,null,0,0]
[40,null,null,null,0,0]
[75,null,null,null,0,0]
[150,null,null,null,0,0]
[300,null,null,null,0,0]
[500,null,null,null,0,0]
[null,null,null,null,0,0]
[null,null,null,null,0,0]
[null,null,null,null,0,0]
[null,null,null,null,0,0]
[null,null,null,null,0,0]
[null,null,null,null,0,0]
[null,null,null,null,0,0]
[null,null,null,null,0,0]
[null,null,null,null,0,0]
[null,null,null,null,0,0]
[null,null,null,null,0,0]
[null,null,null,null,0,0]
[null,null,null,null,0,0]
[null,null,null,null,0,0]
[null,null,null,null,0,0]
[null,null,null,null,0,0]
[null,null,null,null,0,0]
[null,null,null,null,0,0]
[null,null,null,null,0,0]
[null,null,null,null,0,0]
[null,null,null,null,0,0]
[null,null,null,null,0,0]